bitfinex/quotes_BTCUSD_20220226
["timestamp","ask_amount","ask_price","bid_price","bid_amount"]
[1645905301200,0.21603102,39320.0,39310.0,0.1847205]
[1645905301950,0.09362,39319.0,39310.0,0.1847205]
[1645905302145,0.0509,39318.0,39310.0,0.3941276]
[1645905302346,0.063648,39316.0,39310.0,0.3941276]
[1645905302545,0.063648,39316.0,39308.0,0.1179]
[1645905302546,0.0509,39315.0,39308.0,0.1179]
[1645905303654,0.0509,39315.0,39310.0,0.23724251]
[1645905304647,0.0509,39315.0,39310.0,0.43417477]
[1645905306196,0.0509,39315.0,39310.0,0.23724251]
[1645905307594,0.01016,39319.0,39310.0,0.23724251]
[1645905307894,0.12510999,39320.0,39312.0,0.15954413]
[1645905308095,0.124697,39320.0,39312.0,0.15954413]
[1645905308296,0.12511,39320.0,39312.0,0.15954413]
[1645905308700,0.12511,39320.0,39310.0,0.23724251]
[1645905309347,0.05,39319.0,39310.0,0.23724251]
[1645905309548,0.0509,39318.0,39310.0,0.23724251]
[1645905309850,0.0459,39318.0,39311.0,0.18694304]
[1645905311549,0.0459,39318.0,39308.0,0.1179]
[1645905311752,0.063644,39316.0,39308.0,0.1179]
[1645905311950,0.0509,39315.0,39308.0,0.1179]
[1645905312151,0.13759,39315.0,39308.0,0.1179]
[1645905312351,0.13259,39315.0,39308.0,0.1179]
[1645905314499,0.13259,39315.0,39309.0,0.3]
[1645905314704,0.13259,39315.0,39308.0,0.1179]
[1645905315099,0.13259,39315.0,39312.0,0.1779005]
[1645905315499,0.13259,39315.0,39313.0,0.18597607]
[1645905317960,0.08669,39315.0,39313.0,0.18597607]
[1645905318164,0.063638,39318.0,39313.0,0.18597607]
[1645905320310,0.01539973,39320.0,39314.0,0.3]
[1645905321109,0.01539973,39320.0,39316.0,0.18002061]
[1645905321310,0.015,39320.0,39319.0,0.17675704]
[1645905321521,0.01539953,39320.0,39319.0,0.47675704]
[1645905321719,0.01539953,39320.0,39319.0,0.17675704]
[1645905321910,9.53e-06,39320.0,39319.0,0.85604104]
[1645905322309,9.53e-06,39320.0,39319.0,0.55604104]
[1645905322509,0.0999,39332.0,39319.0,0.55604104]
[1645905322809,0.181416,39333.0,39329.0,0.20082438]
[1645905323015,0.063616,39333.0,39329.0,0.20082438]
[1645905323609,0.020345,39337.0,39329.0,0.20082438]
[1645905323610,0.01016,39336.0,39329.0,0.20082438]
[1645905324049,0.00015689,39333.0,39329.0,0.20082438]
[1645905324850,0.16708776,39338.0,39329.0,0.20082438]
[1645905325250,0.00042394,39333.0,39329.0,0.20082438]
[1645905325853,0.06403694,39333.0,39329.0,0.20082438]
[1645905326152,0.063613,39333.0,39329.0,0.20082438]
[1645905326451,0.06403694,39333.0,39329.0,0.20082438]
[1645905327253,0.063613,39333.0,39329.0,0.20082438]
[1645905327450,0.063613,39333.0,39327.0,0.18546733]
[1645905327653,0.06403694,39333.0,39327.0,0.18546733]
[1645905328495,0.063613,39333.0,39327.0,0.18546733]
[1645905328694,0.00042395,39332.0,39327.0,0.18546733]
[1645905329694,0.063613,39333.0,39327.0,0.18546733]
[1645905329894,0.00042395,39331.0,39327.0,0.18546733]
[1645905330296,0.00042395,39331.0,39320.0,0.1132]
[1645905330504,0.063625,39328.0,39320.0,0.1132]
[1645905331295,0.064625,39328.0,39320.0,0.1132]
[1645905331574,0.0509,39327.0,39320.0,0.1132]
[1645905332265,0.00015642,39325.0,39320.0,0.32618105]
[1645905332464,0.06363,39323.0,39320.0,0.32618105]
[1645905332666,0.0509,39322.0,39320.0,0.32618105]
[1645905332868,0.0509,39322.0,39320.0,0.21298105]
[1645905333265,0.0509,39322.0,39319.0,0.19572088]
[1645905333266,0.0519,39322.0,39319.0,0.19572088]
[1645905334366,0.0519,39322.0,39321.0,0.17680809]
[1645905334569,0.0509,39322.0,39319.0,0.19572088]
[1645905337105,0.063625,39326.0,39319.0,0.19572088]
[1645905337301,0.00042352,39322.0,39319.0,0.19572088]
[1645905338101,0.063625,39326.0,39319.0,0.19572088]
[1645905338302,0.00042352,39322.0,39319.0,0.19572088]
[1645905339150,0.00042352,39322.0,39320.0,0.19651389]
[1645905339451,0.063625,39326.0,39320.0,0.19651389]
[1645905339655,0.063625,39326.0,39319.0,0.19572088]
[1645905339656,0.00042352,39322.0,39319.0,0.19572088]
[1645905340450,0.063625,39326.0,39319.0,0.19572088]
[1645905340851,0.00042352,39322.0,39319.0,0.4148229]
[1645905341356,0.06405452,39322.0,39319.0,0.19572088]
[1645905341762,0.063631,39322.0,39319.0,0.19572088]
[1645905341951,0.06405452,39322.0,39319.0,0.19572088]
[1645905342354,0.00042352,39322.0,39320.0,0.18669715]
[1645905342900,0.063626,39325.0,39319.0,0.19072088]
[1645905343400,0.00042351,39323.0,39319.0,0.19072088]
[1645905343800,0.00042351,39323.0,39320.0,0.19520799]
[1645905344200,0.063626,39325.0,39320.0,0.19520799]
[1645905344401,0.00042351,39323.0,39320.0,0.49520799]
[1645905344703,0.00042351,39323.0,39320.0,0.19520799]
[1645905344901,0.00042351,39323.0,39320.0,0.49520799]
[1645905345402,0.063621,39328.0,39320.0,0.49520799]
[1645905345602,0.063621,39328.0,39326.0,0.2069606]
[1645905346850,0.063621,39328.0,39326.0,0.2019606]
[1645905352510,0.063621,39328.0,39326.0,0.20125493]
[1645905356356,0.063621,39328.0,39326.0,0.39251407]
[1645905356555,0.00042311,39329.0,39326.0,0.39251407]
[1645905357155,0.00042311,39329.0,39326.0,0.20125493]
[1645905357356,0.063616,39331.0,39326.0,0.20125493]
[1645905357560,0.00042311,39329.0,39326.0,0.20125493]
[1645905358607,0.015,39333.0,39327.0,0.3]
[1645905359008,0.00042311,39329.0,39327.0,0.3]
[1645905359206,0.00042311,39329.0,39326.0,0.20125493]
[1645905359407,0.00042311,39329.0,39328.0,0.16326934]
[1645905359908,0.015,39333.0,39328.0,0.16326934]
[1645905360123,0.0004231,39330.0,39328.0,0.16326934]
[1645905360409,0.0004231,39330.0,39326.0,0.20125493]
[1645905361009,0.015,39333.0,39332.0,0.21287776]
[1645905362163,0.015,39333.0,39321.0,0.3]
[1645905362361,0.063617,39331.0,39321.0,0.3]
[1645905362961,0.015,39333.0,39321.0,0.3]
[1645905363360,0.015,39333.0,39328.0,0.21317016]
[1645905363661,0.00042292,39329.0,39328.0,0.21273443]
[1645905364664,0.015,39333.0,39328.0,0.21273443]
[1645905364866,0.00042291,39330.0,39329.0,0.3]
[1645905365064,0.00042291,39330.0,39329.0,0.49089684]
[1645905365711,0.015,39333.0,39329.0,0.49089684]
[1645905366116,2.9e-06,39331.0,39330.0,0.80195]
[1645905366314,0.03986276,39338.0,39330.0,0.704734]
[1645905367314,0.03986276,39338.0,39331.0,0.02545]
[1645905368325,0.03986276,39338.0,39337.0,0.18672758]
[1645905368619,0.03986276,39338.0,39331.0,0.02545]
[1645905368620,0.03986276,39338.0,39331.0,0.4126]
[1645905368818,0.03986276,39338.0,39331.0,0.1126]
[1645905369656,0.09076276,39338.0,39331.0,0.1126]
[1645905369856,0.00042287,39336.0,39331.0,0.1126]
[1645905370256,0.00042287,39336.0,39329.0,0.18179669]
[1645905370461,0.00042287,39336.0,39326.0,0.001]
[1645905370660,0.0509,39336.0,39324.0,0.3]
[1645905370958,0.00042288,39334.0,39324.0,0.3]
[1645905371559,0.04632288,39336.0,39328.0,0.21957179]
[1645905371959,0.063612,39334.0,39329.0,0.22263367]
[1645905372161,0.063612,39334.0,39328.0,0.21957179]
[1645905373403,0.063612,39334.0,39330.0,0.22292978]
[1645905373801,0.063612,39334.0,39328.0,0.21957179]
[1645905376860,0.0509,39333.0,39328.0,0.21957179]
[1645905380168,0.1269,39333.0,39323.0,0.1147]
[1645905380413,0.127249,39331.0,39323.0,0.1147]
[1645905380716,0.3509,39330.0,39323.0,0.1147]
[1645905381313,0.3509,39330.0,39322.0,0.00042301]
[1645905381314,0.38858173,39330.0,39322.0,0.00042301]
[1645905381522,0.01016,39329.0,39320.0,0.3661]
[1645905381712,0.063638,39327.0,39320.0,0.3661]
[1645905381914,0.3509,39326.0,39314.0,0.1191]
[1645905382316,0.3509,39326.0,39316.0,0.17418469]
[1645905382512,0.127276,39324.0,39314.0,0.31726009]
[1645905382713,0.3509,39323.0,39314.0,0.31726009]
[1645905382916,0.063637,39321.0,39319.0,0.00039986]
[1645905383119,0.0509,39320.0,39319.0,0.00039986]
[1645905383813,0.0509,39320.0,39314.0,0.31726009]
[1645905384060,0.0509,39320.0,39318.0,0.00039987]
[1645905385056,0.0509,39320.0,39315.0,0.1720402]
[1645905385555,0.0519,39320.0,39315.0,0.1720402]
[1645905385858,0.0519,39320.0,39314.0,0.31726009]
[1645905386656,0.0509,39320.0,39314.0,0.31726009]
[1645905387455,0.0519,39320.0,39314.0,0.31726009]
[1645905387657,0.0519,39320.0,39315.0,0.00040004]
[1645905387904,0.0519,39320.0,39315.0,0.20249887]
[1645905388312,0.0519,39320.0,39315.0,0.00040004]
[1645905388710,0.0509,39320.0,39314.0,0.31726009]
[1645905388906,0.0509,39320.0,39316.0,0.00040004]
[1645905389405,0.0519,39320.0,39316.0,0.00040004]
[1645905389806,0.0519,39320.0,39314.0,0.50971062]
[1645905390007,0.0519,39320.0,39316.0,0.00039993]
[1645905390806,0.0509,39320.0,39316.0,0.00039993]
[1645905391106,0.0509,39320.0,39314.0,0.31726009]
[1645905391552,0.0519,39320.0,39314.0,0.31726009]
[1645905392153,0.0519,39320.0,39314.0,0.50628278]
[1645905392555,0.0519,39320.0,39315.0,0.00026614]
[1645905393354,0.0509,39320.0,39315.0,0.00026614]
[1645905393554,0.0519,39320.0,39314.0,0.50628278]
[1645905393756,0.0519,39320.0,39316.0,0.00040913]
[1645905393960,0.00064298,39319.0,39316.0,0.00040913]
[1645905394756,0.00064298,39319.0,39314.0,0.19816009]
[1645905394959,0.00064298,39319.0,39316.0,0.00040913]
[1645905395414,0.00164298,39319.0,39316.0,0.00040913]
[1645905395612,0.00164298,39319.0,39318.0,0.18189141]
[1645905396912,0.00073408,39319.0,39318.0,0.18189141]
[1645905397712,0.063622,39328.0,39326.0,0.20850905]
[1645905398917,0.063622,39328.0,39322.0,0.00039938]
[1645905399562,0.063622,39328.0,39318.0,0.18189141]
[1645905399763,0.063622,39328.0,39322.0,0.00039938]
[1645905399963,0.063622,39328.0,39322.0,0.21243061]
[1645905400767,0.0509,39327.0,39322.0,0.21203123]
[1645905401065,0.0509,39327.0,39322.0,0.00040003]
[1645905401964,0.0509,39327.0,39318.0,0.18189141]
[1645905402163,0.0509,39327.0,39322.0,0.00040003]
[1645905403111,0.0509,39327.0,39319.0,0.20925445]
[1645905403311,0.0509,39327.0,39322.0,0.00040003]
[1645905404418,0.3,39326.0,39322.0,0.00039998]
[1645905404612,0.0509,39325.0,39322.0,0.00039998]
[1645905405413,0.0509,39325.0,39319.0,0.20925445]
[1645905405612,0.063635,39324.0,39322.0,0.00039998]
[1645905405812,0.114535,39324.0,39322.0,0.00039998]
[1645905406754,0.114535,39324.0,39319.0,0.20925445]
[1645905406958,0.114535,39324.0,39321.0,0.00039999]
[1645905407952,0.114535,39324.0,39319.0,0.20925445]
[1645905408152,0.114535,39324.0,39321.0,0.00039999]
[1645905409153,0.114535,39324.0,39319.0,0.20925445]
[1645905409352,0.114535,39324.0,39321.0,0.00039999]
[1645905409556,0.115535,39324.0,39321.0,0.00039999]
[1645905410706,0.114535,39324.0,39321.0,0.00039999]
[1645905411407,0.114535,39324.0,39319.0,0.20925445]
[1645905411607,0.115535,39324.0,39319.0,0.20925445]
[1645905411806,0.115535,39324.0,39321.0,0.00037404]
[1645905412608,0.115535,39324.0,39319.0,0.20925445]
[1645905412808,0.114535,39324.0,39321.0,0.00037404]
[1645905413609,0.115535,39324.0,39321.0,0.00037404]
[1645905413809,0.115535,39324.0,39319.0,0.20925445]
[1645905414059,0.115535,39324.0,39321.0,0.00037404]
[1645905414763,0.114535,39324.0,39321.0,0.00037404]
[1645905415163,0.114535,39324.0,39319.0,0.20925445]
[1645905415363,0.114535,39324.0,39321.0,0.00037404]
[1645905415561,0.115535,39324.0,39321.0,0.00037404]
[1645905416365,0.115535,39324.0,39319.0,0.20925445]
[1645905416662,0.115535,39324.0,39321.0,0.00037666]
[1645905416873,0.114535,39324.0,39321.0,0.00037666]
[1645905417563,0.115535,39324.0,39319.0,0.20925445]
[1645905417804,0.115535,39324.0,39321.0,0.00037666]
[1645905418603,0.115535,39324.0,39316.0,0.1151]
[1645905418805,0.127278,39321.0,39316.0,0.1151]
[1645905419104,0.0509,39320.0,39316.0,0.1151]
[1645905419304,0.04296599,39321.0,39315.0,0.00150688]
[1645905419505,0.0509,39320.0,39315.0,0.00150688]
[1645905419908,0.0509,39320.0,39313.0,0.22102323]
[1645905420107,0.0509,39320.0,39316.0,0.00037643]
[1645905421109,0.0509,39320.0,39313.0,0.22102323]
[1645905421407,0.0509,39320.0,39316.0,0.00037643]
[1645905421654,0.0519,39320.0,39316.0,0.00037643]
[1645905422256,0.0519,39320.0,39313.0,0.22102323]
[1645905422459,0.0519,39320.0,39316.0,0.00037643]
[1645905422858,0.3009,39320.0,39316.0,0.00037643]
[1645905423459,0.063638,39319.0,39313.0,0.22102323]
[1645905423658,0.0509,39318.0,39316.0,0.00037646]
[1645905424659,0.0509,39318.0,39313.0,0.22102323]
[1645905424858,0.0509,39318.0,39315.0,0.00037646]
[1645905425066,0.0509,39318.0,39315.0,0.16528244]
[1645905425501,0.0519,39318.0,39315.0,0.16528244]
[1645905425901,0.0519,39318.0,39315.0,0.16490598]
[1645905426103,0.0519,39318.0,39315.0,0.16528244]
[1645905426305,0.001,39318.0,39316.0,0.3]
[1645905426502,0.001,39318.0,39317.0,0.379284]
[1645905426701,0.25,39320.0,39316.0,0.3]
[1645905427303,0.25,39320.0,39316.0,0.30037645]
[1645905428304,0.25,39320.0,39316.0,0.3]
[1645905428504,0.25,39320.0,39316.0,0.30037645]
[1645905429175,0.25,39320.0,39319.0,0.21841595]
[1645905431777,0.25,39320.0,39318.0,0.00037644]
[1645905431977,0.25,39320.0,39315.0,0.16490598]
[1645905432180,0.25,39320.0,39318.0,0.00037644]
[1645905433109,0.25,39320.0,39317.0,0.17838334]
[1645905433303,0.25,39320.0,39317.0,0.17875979]
[1645905434304,0.25,39320.0,39317.0,0.17838334]
[1645905434503,0.25,39320.0,39317.0,0.17875979]
[1645905435305,0.24932241,39320.0,39317.0,0.17875979]
[1645905435504,0.24932241,39320.0,39317.0,0.17838334]
[1645905435713,0.24932241,39320.0,39317.0,0.17875979]
[1645905436654,0.24932241,39320.0,39315.0,0.18267789]
[1645905436859,0.34848241,39320.0,39317.0,0.00037645]
[1645905437855,0.34848241,39320.0,39316.0,0.43300958]
[1645905438155,0.34848241,39320.0,39317.0,0.00037663]
[1645905439157,0.34848241,39320.0,39316.0,0.43300958]
[1645905439559,0.34848241,39320.0,39316.0,0.231566]
[1645905440607,0.34848241,39320.0,39317.0,0.18488016]
[1645905441809,0.34848241,39320.0,39317.0,0.18529245]
[1645905442811,0.34848241,39320.0,39317.0,0.18488016]
[1645905443012,0.34848241,39320.0,39317.0,0.18529245]
[1645905444660,0.34848241,39320.0,39317.0,0.48529245]
[1645905445159,0.34848241,39320.0,39317.0,0.48488016]
[1645905445362,0.34848241,39320.0,39317.0,0.48529245]
[1645905445762,0.34848241,39320.0,39317.0,0.18529245]
[1645905446362,0.34848241,39320.0,39316.0,0.231566]
[1645905446562,0.34848241,39320.0,39317.0,0.00039912]
[1645905447163,0.41211641,39320.0,39317.0,0.00039912]
[1645905447566,0.41211641,39320.0,39316.0,0.231566]
[1645905447808,0.41211641,39320.0,39317.0,0.00039912]
[1645905448007,0.0509,39319.0,39317.0,0.00039912]
[1645905448812,0.0509,39319.0,39316.0,0.231566]
[1645905449009,0.0509,39319.0,39316.0,0.23196512]
[1645905449409,0.0509,39319.0,39316.0,0.23166512]
[1645905450108,0.0509,39319.0,39316.0,0.23166601]
[1645905451109,0.0509,39319.0,39316.0,0.231266]
[1645905451308,0.0509,39319.0,39316.0,0.23166601]
[1645905452354,0.0509,39319.0,39316.0,0.231266]
[1645905452557,0.0509,39319.0,39316.0,0.23166601]
[1645905453457,0.0509,39319.0,39317.0,0.19632446]
[1645905453857,0.0509,39319.0,39316.0,0.23153206]
[1645905454657,0.0509,39319.0,39316.0,0.231266]
[1645905454859,0.0509,39319.0,39316.0,0.23153206]
[1645905456007,0.0509,39319.0,39316.0,0.231266]
[1645905456210,0.0509,39319.0,39316.0,0.23153206]
[1645905457210,0.0509,39319.0,39316.0,0.231266]
[1645905457411,0.0509,39319.0,39316.0,0.2316872]
[1645905458312,0.0509,39319.0,39316.0,0.231266]
[1645905458511,0.0509,39319.0,39316.0,0.2316872]
[1645905459556,0.0509,39319.0,39316.0,0.231266]
[1645905459756,0.0509,39319.0,39316.0,0.2316872]
[1645905460659,0.0509,39319.0,39316.0,0.231266]
[1645905460856,0.0509,39319.0,39316.0,0.2316872]
[1645905461857,0.0509,39319.0,39316.0,0.231266]
[1645905462058,0.0509,39319.0,39316.0,0.2316872]
[1645905462257,0.0509,39319.0,39316.0,0.43884443]
[1645905462657,0.31295641,39320.0,39316.0,0.43884443]
[1645905462907,0.24932241,39320.0,39316.0,0.43884443]
[1645905463106,0.24932241,39320.0,39316.0,0.43842323]
[1645905463309,0.24932241,39320.0,39316.0,0.43884442]
[1645905464313,0.24932241,39320.0,39316.0,0.43842323]
[1645905464510,0.24932241,39320.0,39316.0,0.43884442]
[1645905464913,0.31295641,39320.0,39316.0,0.23168719]
[1645905465511,0.31295641,39320.0,39316.0,0.231266]
[1645905465710,0.31295641,39320.0,39316.0,0.23168719]
[1645905466310,0.31295641,39320.0,39316.0,0.23123639]
[1645905466763,0.31295641,39320.0,39316.0,0.2308152]
[1645905466964,0.31295641,39320.0,39316.0,0.23123639]
[1645905467964,0.31295641,39320.0,39316.0,0.2308152]
[1645905468165,0.31295641,39320.0,39316.0,0.23123639]
[1645905469164,0.31295641,39320.0,39316.0,0.2308152]
[1645905469369,0.31295641,39320.0,39316.0,0.23123639]
[1645905469568,0.31295641,39320.0,39316.0,0.00042119]
[1645905470412,0.31295641,39320.0,39313.0,0.3]
[1645905470611,0.31295641,39320.0,39316.0,0.00042119]
[1645905471611,0.31295641,39320.0,39314.0,0.18910316]
[1645905471810,0.31295641,39320.0,39316.0,0.00039452]
[1645905472811,0.31295641,39320.0,39314.0,0.18910316]
[1645905473018,0.31295641,39320.0,39316.0,0.00039452]
[1645905475062,0.28583005,39320.0,39315.0,0.3]
[1645905475261,0.28583005,39320.0,39316.0,0.00023938]
[1645905476262,0.28583005,39320.0,39315.0,0.3]
[1645905476563,0.28583005,39320.0,39316.0,0.00039613]
[1645905477164,0.22219605,39320.0,39316.0,0.00039613]
[1645905477564,0.22219605,39320.0,39315.0,0.3]
[1645905477842,0.22219605,39320.0,39316.0,0.00039613]
[1645905478042,0.0509,39319.0,39316.0,0.00039613]
[1645905478643,0.0509,39319.0,39314.0,0.18910316]
[1645905478841,0.114535,39319.0,39314.0,0.18910316]
[1645905479442,0.0509,39319.0,39315.0,0.3]
[1645905479642,0.0509,39319.0,39314.0,0.18910316]
[1645905480245,0.0509,39319.0,39315.0,0.00039601]
[1645905481044,0.0509,39319.0,39317.0,0.20430939]
[1645905481245,0.0509,39319.0,39314.0,0.18910316]
[1645905481447,0.0509,39319.0,39315.0,0.00039601]
[1645905482259,0.0509,39319.0,39316.0,0.1851055]
[1645905482663,0.0509,39319.0,39314.0,0.18910316]
[1645905483759,0.0509,39319.0,39315.0,0.00039924]
[1645905484661,0.0509,39319.0,39314.0,0.35648953]
[1645905484860,0.0509,39319.0,39315.0,0.00039924]
[1645905485311,0.0509,39319.0,39314.0,0.35643857]
[1645905485908,0.0509,39319.0,39315.0,0.3]
[1645905486111,0.0509,39319.0,39314.0,0.35643857]
[1645905486310,0.063637,39318.0,39310.0,0.3374]
[1645905486511,0.0509,39317.0,39306.0,0.05]
[1645905486712,0.0509,39317.0,39302.0,0.31016]
[1645905487011,1.11382818,39316.0,39302.0,0.3]
[1645905487211,0.0509,39315.0,39302.0,0.421]
[1645905487510,0.0509,39315.0,39308.0,0.00024425]
[1645905487511,0.34982468,39314.0,39308.0,0.00024425]
[1645905487711,0.0509,39313.0,39308.0,0.00024425]
[1645905488312,0.0509,39313.0,39302.0,0.421]
[1645905488513,0.063651,39310.0,39302.0,0.421]
[1645905488711,0.0509,39309.0,39302.0,0.421]
[1645905489365,0.0509,39309.0,39304.0,0.23996611]
[1645905489766,0.0519,39309.0,39304.0,0.23996611]
[1645905490668,0.0519,39309.0,39307.0,0.19349773]
[1645905491067,0.0509,39309.0,39307.0,0.19349773]
[1645905491870,0.0519,39309.0,39307.0,0.19349773]
[1645905492170,0.0519,39309.0,39306.0,0.00039297]
[1645905493016,0.0519,39309.0,39306.0,0.15882961]
[1645905493017,0.0509,39309.0,39306.0,0.15882961]
[1645905493214,0.0509,39309.0,39306.0,0.15843664]
[1645905493514,0.0509,39309.0,39306.0,0.15867437]
[1645905493714,0.0519,39309.0,39306.0,0.15867437]
[1645905494316,0.0519,39309.0,39306.0,0.15843664]
[1645905494515,0.0519,39309.0,39306.0,0.15867437]
[1645905494715,0.0519,39309.0,39306.0,0.00023773]
[1645905495216,0.115551,39309.0,39306.0,0.00023773]
[1645905495620,0.114551,39309.0,39304.0,0.23996611]
[1645905495816,0.115551,39309.0,39306.0,0.19233102]
[1645905496116,0.115551,39309.0,39304.0,0.23996611]
[1645905496325,0.115551,39309.0,39301.0,0.001]
[1645905496326,0.3,39308.0,39301.0,0.001]
[1645905496583,0.015,39306.0,39301.0,0.001]
[1645905496778,0.063676,39304.0,39301.0,0.001]
[1645905496977,0.3509,39303.0,39301.0,0.001]
[1645905497183,0.3,39302.0,39297.0,0.00159953]
[1645905497376,0.0509,39301.0,39297.0,0.00159953]
[1645905497578,0.47284981,39300.0,39297.0,0.00159953]
[1645905497778,0.0509,39299.0,39297.0,0.00159953]
[1645905497976,0.0509,39299.0,39292.0,0.001]
[1645905498184,0.0509,39299.0,39297.0,0.00039986]
[1645905499178,0.0509,39299.0,39291.0,0.17404657]
[1645905499379,0.0509,39299.0,39296.0,0.00039986]
[1645905499781,0.0519,39299.0,39298.0,0.19698787]
[1645905501022,0.0509,39299.0,39298.0,0.19698787]
[1645905501423,0.0509,39299.0,39298.0,0.37050629]
[1645905501821,0.0529,39299.0,39298.0,0.37050629]
[1645905503030,0.0509,39299.0,39298.0,0.37050629]
[1645905503523,0.3009,39299.0,39298.0,0.19698787]
[1645905503923,0.3019,39299.0,39298.0,0.19698787]
[1645905505063,0.3009,39299.0,39298.0,0.19698787]
[1645905505868,0.3019,39299.0,39298.0,0.19698787]
[1645905506064,0.3019,39299.0,39298.0,0.41947292]
[1645905506666,0.3169,39299.0,39298.0,0.41947292]
[1645905506865,0.3169,39299.0,39298.0,0.19698787]
[1645905507166,0.3159,39299.0,39298.0,0.19698787]
[1645905507465,0.265,39299.0,39298.0,0.19698787]
[1645905507912,0.266,39299.0,39298.0,0.19698787]
[1645905508311,0.266,39299.0,39298.0,0.19687407]
[1645905508912,0.23401562,39299.0,39298.0,0.19687407]
[1645905509112,0.23301562,39299.0,39298.0,0.19687407]
[1645905509914,0.23401562,39299.0,39298.0,0.19687407]
[1645905511118,0.23301562,39299.0,39298.0,0.19687407]
[1645905512165,0.23501562,39299.0,39298.0,0.19687407]
[1645905513267,0.23501562,39299.0,39298.0,0.37737494]
[1645905513464,0.23301562,39299.0,39298.0,0.37737494]
[1645905513668,0.23301562,39299.0,39298.0,0.19687407]
[1645905513866,0.23501562,39299.0,39298.0,0.19687407]
[1645905514566,0.23501562,39299.0,39298.0,0.36341891]
[1645905514767,0.23501562,39299.0,39298.0,0.19687407]
[1645905514966,0.23301562,39299.0,39298.0,0.19687407]
[1645905515911,0.23501562,39299.0,39298.0,0.19687407]
[1645905516112,0.23501562,39299.0,39298.0,0.42160047]
[1645905517111,0.23301562,39299.0,39298.0,0.42160047]
[1645905517313,0.23301562,39299.0,39298.0,0.19687407]
[1645905517916,0.23401562,39299.0,39298.0,0.19687407]
[1645905519162,0.23301562,39299.0,39298.0,0.19687407]
[1645905519962,0.23401562,39299.0,39298.0,0.19687407]
[1645905521164,0.23301562,39299.0,39298.0,0.19687407]
[1645905521864,0.23401562,39299.0,39298.0,0.19687407]
[1645905522267,0.29768562,39299.0,39298.0,0.19687407]
[1645905522667,0.29768562,39299.0,39297.0,0.00039789]
[1645905523114,0.29668562,39299.0,39297.0,0.00039789]
[1645905523319,0.29668562,39299.0,39294.0,0.1649774]
[1645905523515,0.29668562,39299.0,39296.0,0.00039789]
[1645905523716,0.29668562,39299.0,39296.0,0.18843352]
[1645905523915,0.29768562,39299.0,39296.0,0.18843352]
[1645905524515,0.29768562,39299.0,39296.0,0.18803563]
[1645905524715,0.23401562,39299.0,39296.0,0.18843361]
[1645905525115,0.23301562,39299.0,39296.0,0.18843361]
[1645905525715,0.23301562,39299.0,39296.0,0.18803563]
[1645905525916,0.23401562,39299.0,39296.0,0.18843361]
[1645905527067,0.015,39298.0,39296.0,0.18843361]
[1645905527867,0.016,39298.0,39296.0,0.18843361]
[1645905528067,0.016,39298.0,39296.0,0.18803563]
[1645905529071,0.015,39298.0,39296.0,0.18803563]
[1645905529871,0.016,39298.0,39296.0,0.18803563]
[1645905530313,0.016,39298.0,39296.0,0.1879296]
[1645905531117,0.015,39298.0,39296.0,0.1879296]
[1645905531815,0.016,39298.0,39296.0,0.1879296]
[1645905533120,0.015,39298.0,39296.0,0.1879296]
[1645905534064,0.017,39298.0,39296.0,0.1879296]
[1645905534872,0.017,39298.0,39295.0,0.00039798]
[1645905535069,0.11102,39298.0,39295.0,0.00039798]
[1645905535267,0.11102,39298.0,39290.0,0.00303777]
[1645905535467,0.0509,39297.0,39295.0,0.00039799]
[1645905536467,0.0409,39297.0,39290.0,0.00303777]
[1645905536669,0.12736,39296.0,39294.0,0.00039865]
[1645905536869,0.0509,39295.0,39294.0,0.00039865]
[1645905537270,0.033716,39295.0,39294.0,0.00039865]
[1645905537816,0.034716,39295.0,39292.0,0.20538699]
[1645905538016,0.034716,39295.0,39293.0,0.00039866]
[1645905539018,0.033716,39295.0,39293.0,0.19973292]
[1645905539819,0.034716,39295.0,39293.0,0.19973292]
[1645905541118,0.033716,39295.0,39293.0,0.19973292]
[1645905541760,0.015,39297.0,39295.0,0.101148]
[1645905542563,0.015,39297.0,39296.0,0.3]
[1645905543966,0.010781,39297.0,39296.0,0.3]
[1645905544362,0.010781,39297.0,39295.0,0.10154653]
[1645905544767,0.010781,39297.0,39296.0,0.3]
[1645905544964,0.010781,39297.0,39295.0,0.101148]
[1645905545418,0.009781,39297.0,39295.0,0.101148]
[1645905545813,0.010781,39297.0,39295.0,0.101148]
[1645905547116,0.009781,39297.0,39295.0,0.101148]
[1645905547925,0.010781,39297.0,39295.0,0.101148]
[1645905548121,1e-06,39297.0,39296.0,0.679284]
[1645905548520,1e-06,39297.0,39296.0,0.379284]
[1645905548719,1e-06,39297.0,39296.0,0.679284]
[1645905549164,0.21801562,39299.0,39296.0,0.679284]
[1645905549361,0.21801562,39299.0,39297.0,0.21758269]
[1645905549561,0.21801562,39299.0,39298.0,0.679284]
[1645905549961,0.21901562,39299.0,39298.0,0.679284]
[1645905551164,0.06008562,39299.0,39298.0,0.679284]
[1645905551364,5.62e-06,39299.0,39298.0,0.679284]
[1645905551763,5.62e-06,39299.0,39298.0,0.802884]
[1645905553419,0.06365,39310.0,39299.0,0.379284]
[1645905553617,0.06365,39310.0,39309.0,0.21300234]
[1645905555823,0.06465,39310.0,39309.0,0.21300234]
[1645905556119,0.001,39310.0,39309.0,0.21300234]
[1645905556765,0.016,39310.0,39309.0,0.21300234]
[1645905557165,0.015,39310.0,39309.0,0.21300234]
[1645905557868,0.016,39310.0,39309.0,0.21300234]
[1645905559067,0.015,39310.0,39309.0,0.21300234]
[1645905559867,0.017,39310.0,39309.0,0.21300234]
[1645905561518,0.017,39310.0,39309.0,0.38399642]
[1645905561720,0.017,39310.0,39309.0,0.21300234]
[1645905561918,0.019,39310.0,39309.0,0.21300234]
[1645905563125,0.015,39310.0,39309.0,0.43484112]
[1645905563327,0.015,39310.0,39309.0,0.21300234]
[1645905563922,0.017,39310.0,39309.0,0.21300234]
[1645905564163,0.00672146,39310.0,39309.0,0.21300234]
[1645905564367,0.00672146,39310.0,39309.0,0.40626828]
[1645905564967,0.25672146,39310.0,39309.0,0.40626828]
[1645905565167,0.25472146,39310.0,39309.0,0.21300234]
[1645905565967,0.25572146,39310.0,39309.0,0.21300234]
[1645905567070,0.25472146,39310.0,39309.0,0.21300234]
[1645905567915,0.25572146,39310.0,39309.0,0.21300234]